bitfinex/quotes_SOLUSD_20240926
["timestamp","ask_amount","ask_price","bid_price","bid_amount"]
[1727311161984,0.12549,147.87,147.84,7.1879927]
[1727311162295,23.776884,147.88,147.84,0.4240927]
[1727311162488,6.88819,147.87,147.84,0.4240927]
[1727311163305,26.88899,147.86,147.84,0.4240927]
[1727311166184,6.7618,147.89,147.85,6.7635]
[1727311166391,6.7618,147.89,147.84,0.4240927]
[1727311167412,20.26,147.91,147.84,0.4240927]
[1727311167594,23.776884,147.86,147.84,0.4240927]
[1727311167991,30.540084,147.86,147.84,0.4240927]
[1727311171804,23.776884,147.86,147.84,0.4240927]
[1727311171985,30.540084,147.86,147.84,0.4240927]
[1727311172508,50.791464,147.85,147.84,0.4240927]
[1727311180598,16.6641,147.9,147.84,0.4240927]
[1727311180800,6.2402,147.93,147.84,0.4240927]
[1727311181009,6.7609,147.91,147.87,6.7625]
[1727311181219,6.7609,147.91,147.86,6.763]
[1727311181814,23.68086651,147.94,147.84,1.77667368]
[1727311182001,23.68086651,147.94,147.84,0.4240927]
[1727311182200,6.7628,147.87,147.84,0.4240927]
[1727311182595,6.7631,147.86,147.84,0.4240927]
[1727311183598,20.0,147.91,147.84,0.4240927]
[1727311183827,0.12549,147.87,147.84,0.4240927]
[1727311184116,24.027864,147.87,147.84,0.4240927]
[1727311184309,23.902374,147.87,147.84,0.4240927]
[1727311188828,6.7617,147.9,147.84,7.1879927]
[1727311189119,6.7618,147.89,147.84,7.1879927]
[1727311190201,6.7618,147.89,147.84,0.4240927]
[1727311190403,6.7618,147.89,147.85,6.7636]
[1727311190602,16.9009,147.93,147.84,0.4240927]
[1727311190603,24.027864,147.91,147.84,0.4240927]
[1727311190921,23.776884,147.89,147.86,6.763]
[1727311191825,23.776884,147.89,147.84,0.4240927]
[1727311191826,23.776884,147.89,147.85,6.7635]
[1727311192433,23.68086651,147.94,147.86,1.35260262]
[1727311192626,6.76,147.93,147.89,6.7617]
[1727311193336,6.76,147.93,147.88,6.7621]
[1727311196411,6.5514,147.97,147.88,6.7621]
[1727311196412,6.88499,147.94,147.89,6.7616]
[1727311202647,20.0,147.96,147.9,12.3011454]
[1727311203030,6.7577,147.98,147.93,6.7598]
[1727311203329,6.7577,147.98,147.94,6.7594]
[1727311203732,17.1463612,148.0,147.92,16.0864]
[1727311203935,6.7586,147.96,147.92,16.0864]
[1727311204843,23.776884,147.95,147.92,16.0864]
[1727311205240,6.7586,147.96,147.92,22.8467]
[1727311205426,44.027864,147.99,147.92,22.8467]
[1727311205635,6.7582,147.97,147.92,22.8467]
[1727311205824,20.25098,147.99,147.93,6.7598]
[1727311206750,37.14658,147.97,147.88,6.5408]
[1727311206919,6.7613,147.9,147.88,6.5408]
[1727311207124,23.902374,147.92,147.88,6.5408]
[1727311207481,0.12549,147.92,147.88,6.5408]
[1727311207626,6.7612,147.91,147.88,6.5408]
[1727311207821,0.12549,147.92,147.87,15.6845]
[1727311208044,6.7627,147.87,147.84,6.9766927]
[1727311209527,6.7631,147.86,147.84,0.4240927]
[1727311209730,17.02839,147.91,147.84,0.4240927]
[1727311209731,30.665974,147.85,147.84,0.4240927]
[1727311210845,20.0,147.86,147.84,0.4240927]
[1727311212253,26.7631,147.86,147.84,0.4240927]
[1727311212444,6.7631,147.86,147.84,0.4240927]
[1727311212643,50.791464,147.85,147.84,0.4240927]
[1727311217557,6.7632,147.86,147.84,0.4240927]
[1727311217859,6.7628,147.87,147.84,0.4240927]
[1727311218057,20.0,147.86,147.84,0.4240927]
[1727311218662,20.0,147.89,147.84,0.4240927]
[1727311218864,7.01292737,147.91,147.84,6.4299927]
[1727311219050,16.3657,147.94,147.84,6.4299927]
[1727311219766,6.7617,147.89,147.84,13.1936927]
[1727311222477,6.7613,147.9,147.85,8.11607914]
[1727311222668,6.7613,147.9,147.85,6.7635]
[1727311222870,6.7613,147.9,147.85,8.11602414]
[1727311223467,6.7613,147.9,147.86,6.763]
[1727311223638,105.57638489,147.95,147.89,6.7616]
[1727311223639,7.01122531,147.95,147.89,6.7616]
[1727311223843,6.7599,147.93,147.88,6.7621]
[1727311224070,16.8972,147.96,147.85,15.9087]
[1727311224368,6.7612,147.91,147.86,6.7631]
[1727311225274,6.7605,147.92,147.87,6.7626]
[1727311226051,6.76,147.93,147.88,6.7621]
[1727311227149,6.7604,147.92,147.87,6.7626]
[1727311227350,6.7609,147.91,147.85,15.9087]
[1727311227656,6.7609,147.91,147.86,6.763]
[1727311230464,20.0,147.93,147.86,6.763]
[1727311230771,6.7609,147.91,147.86,6.763]
[1727311232259,20.0,147.95,147.85,15.9087]
[1727311232573,6.7598,147.94,147.89,6.7614]
[1727311232761,20.0,147.93,147.89,6.7614]
[1727311233260,6.7598,147.94,147.89,6.7614]
[1727311235357,50.6805,147.99,147.85,15.9087]
[1727311235358,6.761,147.91,147.85,15.9087]
[1727311235686,6.7609,147.91,147.86,6.763]
[1727311235892,20.12549,147.93,147.86,6.763]
[1727311236179,6.7614,147.9,147.86,6.763]
[1727311238667,20.12549,147.93,147.86,6.763]
[1727311238868,6.761,147.91,147.86,6.763]
[1727311239787,20.0,147.93,147.89,6.7615]
[1727311239967,26.76,147.93,147.88,6.7621]
[1727311240563,23.902374,147.94,147.85,15.9087]
[1727311240564,30.662174,147.94,147.89,8.11357164]
[1727311240792,30.662174,147.94,147.89,6.7613]
[1727311241677,6.76,147.93,147.89,6.7613]
[1727311242183,6.7605,147.92,147.88,6.7621]
[1727311242390,20.12549,147.93,147.86,6.7631]
[1727311242588,23.902374,147.92,147.86,6.7631]
[1727311243291,20.0,147.93,147.86,1.35240815]
[1727311243472,6.7604,147.92,147.88,6.7621]
[1727311244404,24.027864,147.97,147.89,7.70336194]
[1727311244586,6.76,147.93,147.9,1.35212711]
[1727311245969,6.76,147.93,147.89,13.1127]
[1727311246396,6.7596,147.94,147.9,1.35212729]
[1727311246798,6.7596,147.94,147.89,13.1127]
[1727311247205,6.76,147.93,147.89,13.1127]
[1727311250509,6.7604,147.92,147.89,6.3511]
[1727311252904,6.76,147.93,147.89,13.1128]
[1727311254616,6.7591,147.95,147.9,8.11302417]
[1727311255593,6.7591,147.95,147.91,6.7607]
[1727311256225,6.7591,147.95,147.9,8.11332417]
[1727311258849,0.2539612,148.0,147.91,17.56201676]
[1727311259122,0.2539612,148.0,147.95,6.6425]
[1727311259309,0.2539612,148.0,147.97,6.7581]
[1727311259518,0.2539612,148.0,147.96,8.10987779]
[1727311260418,6.7581,147.97,147.95,6.6425]
[1727311260611,6.7581,147.97,147.92,6.7603]
[1727311262298,6.7586,147.96,147.92,6.7603]
[1727311262499,6.7591,147.95,147.91,22.4332]
[1727311263606,6.7591,147.95,147.91,29.1939]
[1727311265925,44.027864,147.99,147.88,22.121]
[1727311266100,6.7595,147.94,147.9,6.7612]
[1727311266721,20.0,147.99,147.88,22.121]
[1727311266927,6.7588,147.96,147.91,6.7608]
[1727311267129,20.0,147.99,147.91,6.7608]
[1727311267334,6.759,147.95,147.88,22.121]
[1727311267626,20.0,147.95,147.88,22.121]
[1727311267829,6.7604,147.92,147.88,22.121]
[1727311268333,0.12549,147.96,147.89,1.35225421]
[1727311268625,24.027864,147.96,147.89,1.35225421]
[1727311268833,23.902374,147.94,147.89,1.35225421]
[1727311269502,30.661874,147.94,147.89,8.11395421]
[1727311270311,30.661874,147.94,147.89,6.7617]
[1727311270503,6.7605,147.92,147.88,22.121]
[1727311270721,6.76,147.93,147.89,1.35219833]
[1727311272416,6.76,147.93,147.89,8.11389833]
[1727311272810,6.76,147.93,147.89,6.7617]
[1727311273207,6.76,147.93,147.88,22.121]
[1727311273536,6.76,147.93,147.89,1.35210921]
[1727311274133,6.76,147.93,147.88,28.8832]
[1727311276939,6.7604,147.92,147.88,28.8832]
[1727311277141,6.76,147.93,147.88,28.8832]
[1727311277443,24.027864,147.96,147.89,1.35214573]
[1727311277621,26.759,147.95,147.9,6.7612]
[1727311277821,26.759,147.95,147.91,1.35199707]
[1727311278421,6.7586,147.96,147.91,1.35199707]
[1727311278639,6.7581,147.97,147.92,1.3518893]
[1727311279147,6.7586,147.96,147.92,8.1118893]
[1727311279322,6.7586,147.96,147.91,6.7608]
[1727311280024,6.7586,147.96,147.92,8.11215386]
[1727311280232,23.776884,147.96,147.92,8.11215386]
[1727311280643,30.535484,147.96,147.92,6.7603]
[1727311288340,0.25098,147.98,147.92,6.7603]
[1727311288540,6.758,147.98,147.93,8.11154707]
[1727311288853,23.776884,147.97,147.93,8.11154707]
[1727311289054,23.776884,147.97,147.94,1.35174706]
[1727311289438,7.0107612,148.0,147.96,6.7585]
[1727311289640,7.0107612,148.0,147.96,1.35152666]
[1727311290771,7.0107612,148.0,147.95,6.7589]
[1727311291059,6.7573,147.99,147.95,6.7589]
[1727311292332,6.7573,147.99,147.94,6.2904]
[1727311292598,6.7589,147.96,147.91,6.7607]
[1727311293551,6.7589,147.96,147.92,6.7602]
[1727311294855,6.7581,147.97,147.93,6.7597]
[1727311295656,6.7581,147.97,147.92,6.7603]
[1727311296765,20.0,147.98,147.91,6.7608]
[1727311297264,6.7586,147.96,147.91,6.7608]
[1727311297952,24.027864,147.97,147.92,6.7602]
[1727311298157,30.785964,147.97,147.92,6.7602]
[1727311301771,23.902374,147.97,147.9,6.2598]
[1727311302062,23.902374,147.97,147.93,6.7598]
[1727311302245,23.902374,147.97,147.94,1.3517353]
[1727311302970,0.12549,147.97,147.94,1.3517353]
[1727311303336,0.2539612,148.0,147.94,1.3517353]
[1727311303542,0.2539612,148.0,147.94,12.30680276]
[1727311303543,6.7573,147.99,147.94,12.30680276]
[1727311303837,6.7573,147.99,147.95,1.35158139]
[1727311304041,7.0107612,148.0,147.95,8.11038139]
[1727311304769,0.2539612,148.0,147.96,6.7582]
[1727311304953,20.2539612,148.0,147.96,6.7582]
[1727311305274,7.0108612,148.0,147.95,28.8674]
[1727311306464,0.12549,147.99,147.95,28.8674]
[1727311306661,0.2539612,148.0,147.99,6.7572]
[1727311306856,0.2539612,148.0,147.99,20.41511525]
[1727311307056,0.2539612,148.0,147.99,42.08581525]
[1727311307364,0.2539612,148.0,147.99,62.08581525]
[1727311307612,0.2539612,148.0,147.99,85.86269925]
[1727311307877,0.2539612,148.05,148.04,6.7549]
[1727311308067,0.2539612,148.05,148.04,8.10558235]
[1727311308373,0.2539612,148.05,148.04,6.7549]
[1727311308950,0.2539612,148.05,148.04,8.10555819]
[1727311309175,0.2539612,148.05,148.04,6.7549]
[1727311309382,0.2539612,148.05,148.04,19.06170276]
[1727311309545,0.2539612,148.05,148.04,25.15300276]
[1727311309741,0.2539612,148.05,148.04,61.22220276]
[1727311310346,0.2539612,148.05,148.04,68.10452511]
[1727311311171,0.2539612,148.09,148.08,26.7531]
[1727311311398,0.2539612,148.09,148.08,45.94222511]
[1727311312086,0.2539612,148.09,148.08,26.7531]
[1727311314094,0.2539612,148.09,148.08,6.7531]
[1727311315368,0.2539612,148.09,148.05,20.0]
[1727311315787,0.2539612,148.09,148.07,6.7535]
[1727311319581,0.2539612,148.09,148.08,8.1035458]
[1727311320572,0.2539612,148.09,148.08,6.7531]
[1727311326009,0.2539612,148.09,148.08,26.7531]
[1727311326172,0.2539612,148.09,148.08,51.87984509]
[1727311326572,0.2539612,148.09,148.08,52.00533509]
[1727311327080,0.3185578,148.14,148.13,6.7508]
[1727311331203,0.3185578,148.14,148.13,8.1005344]
[1727311331582,0.3185578,148.14,148.13,27.28965951]
[1727311331787,0.3185578,148.14,148.13,47.28965951]
[1727311332394,0.3185578,148.14,148.13,45.93992511]
[1727311333383,0.3185578,148.14,148.13,26.7508]
[1727311334719,0.3185578,148.14,148.13,6.7508]
[1727311335578,0.3185578,148.14,148.11,28.8715]
[1727311335783,0.3185578,148.14,148.11,6.7513]
[1727311335982,0.3185578,148.14,148.12,6.7512]
[1727311336404,0.3185578,148.14,148.13,8.10079135]
[1727311336609,0.3185578,148.14,148.13,8.10016724]
[1727311337289,0.3185578,148.14,148.13,28.10016724]
[1727311337626,0.3185578,148.14,148.13,28.10032376]
[1727311338703,0.3185578,148.14,148.13,26.7508]
[1727311340398,0.3185578,148.14,148.13,6.7508]
[1727311343615,0.3185578,148.14,148.13,8.1006282]
[1727311344003,0.3185578,148.14,148.13,6.7508]
[1727311348518,0.3185578,148.14,148.12,6.7512]
[1727311349690,0.3185578,148.14,148.07,15.1727]
[1727311349898,0.3185578,148.14,148.1,6.7518]
[1727311350101,7.0688578,148.14,148.1,6.7518]
[1727311350307,0.12549,148.13,148.09,6.7525]
[1727311350728,6.87639,148.13,148.04,25.84652511]
[1727311351198,0.12549,148.13,148.09,6.7526]
[1727311351914,0.12549,148.1,148.06,6.7536]
[1727311353120,23.902374,148.12,148.08,6.7528]
[1727311353418,23.902374,148.12,148.09,6.7525]
[1727311355805,0.12549,148.12,148.09,6.7525]
[1727311356514,6.0693,148.13,148.1,1.35032561]
[1727311356716,0.12549,148.13,148.1,6.752]
[1727311358208,0.3185578,148.14,148.11,8.10182436]
[1727311358410,0.3185578,148.14,148.11,6.7516]
[1727311358717,0.3185578,148.14,148.06,20.0]
[1727311359024,6.7517,148.11,148.06,26.7539]
[1727311359327,6.7513,148.12,148.08,6.7529]
[1727311361326,0.12549,148.11,148.07,6.7535]
[1727311361509,6.87729,148.11,148.07,6.7535]
[1727311362007,23.902374,148.11,148.07,6.7532]
[1727311363506,23.902374,148.11,148.05,19.18912511]
[1727311363829,23.902374,148.11,148.08,6.7528]
[1727311368628,0.12549,148.12,148.08,6.7528]
[1727311368931,23.902374,148.12,148.08,6.7528]
[1727311370614,0.12549,148.11,148.05,19.18912511]
[1727311370814,23.902374,148.11,148.07,6.7534]
[1727311371232,23.902374,148.11,148.04,20.0]
[1727311371233,23.902374,148.09,148.04,20.0]
[1727311371532,0.12549,148.08,148.06,6.754]
[1727311372325,0.12549,148.08,148.04,6.7547]
[1727311372638,0.12549,148.08,148.05,20.0]
[1727311373726,0.12549,148.08,148.05,6.7543]
[1727311375145,0.12549,148.08,148.06,6.7539]
[1727311379241,0.12549,148.09,148.04,12.28461933]
[1727311379432,0.12549,148.09,148.07,6.7534]
[1727311379747,0.25098,148.09,148.07,6.7534]
[1727311380823,16.3169,148.1,148.05,13.63525362]
[1727311381131,16.3169,148.1,148.07,12.28461933]
[1727311381341,16.3169,148.1,148.06,12.28461933]
[1727311382150,16.3169,148.1,148.08,6.7529]
[1727311383220,0.3185578,148.14,148.0,20.0]
[1727311383221,16.6554578,148.14,148.09,13.63513332]
[1727311383439,16.6554578,148.14,148.11,6.7513]
[1727311383626,16.6554578,148.14,148.1,12.28461933]
[1727311383829,16.6554578,148.14,148.1,19.03671933]
[1727311384050,16.6554578,148.14,148.1,12.28461933]
[1727311384234,16.6554578,148.14,148.11,6.7513]
[1727311384636,0.12549,148.13,148.11,6.7513]
[1727311385744,16.6554578,148.14,148.11,8.10156866]
[1727311385932,0.3185578,148.14,148.12,12.28461933]
[1727311386134,0.3185578,148.14,148.13,6.7508]
[1727311387167,0.3185578,148.14,148.12,6.7512]
[1727311387870,7.0692578,148.14,148.08,26.7526]
[1727311388070,7.00198,148.13,148.08,6.7526]
[1727311388264,0.3185578,148.14,148.05,12.28461933]
[1727311388265,24.027864,148.11,148.05,12.28461933]
[1727311388457,24.027864,148.11,148.04,12.28461933]
[1727311388765,6.7522,148.1,148.06,6.7538]
[1727311389073,24.027864,148.09,148.06,6.7538]
[1727311390204,6.7531,148.08,148.04,6.7549]
[1727311390375,24.027864,148.09,148.05,6.7544]
[1727311391058,24.027864,148.09,148.07,6.7533]
[1727311391752,0.25098,148.09,148.07,6.7533]
[1727311393377,24.027864,148.1,148.07,6.7533]
[1727311393674,24.027864,148.1,148.03,20.0]
[1727311393867,24.027864,148.1,148.06,6.7539]
[1727311394577,23.776884,148.09,148.06,6.7539]
[1727311394873,0.12549,148.08,148.06,6.7539]
[1727311395381,0.12549,148.1,148.04,1.35073993]
[1727311395551,0.12549,148.1,148.08,6.753]
[1727311396565,0.12549,148.1,148.07,6.7535]
[1727311398764,0.12549,148.1,148.05,1.35056536]
[1727311398956,0.12549,148.1,148.08,6.753]
[1727311399985,0.12549,148.11,148.1,6.7521]
[1727311400346,0.25098,148.11,148.1,6.7521]
[1727311400870,0.25098,148.11,148.09,6.7525]
[1727311403186,24.027864,148.11,148.02,19.19462459]
[1727311403576,24.027864,148.11,148.03,20.0]
[1727311405563,24.027864,148.11,148.07,6.7531]
[1727311405764,0.25098,148.11,148.08,6.7528]
[1727311407281,15.205,148.12,148.09,1.35048654]
[1727311407723,15.205,148.12,148.1,6.752]
[1727311407898,15.205,148.12,148.09,6.7525]
[1727311408797,0.12549,148.11,148.09,6.7525]
[1727311409500,0.12549,148.11,148.04,19.19462459]
[1727311409688,0.12549,148.11,148.08,6.753]
[1727311410700,0.25098,148.11,148.08,6.753]
[1727311410877,24.027864,148.11,148.08,6.753]
[1727311411079,24.027864,148.11,148.05,1.35053229]
[1727311411080,0.12549,148.11,148.05,1.35053229]
[1727311411289,0.12549,148.11,148.09,6.7526]
[1727311412482,0.12549,148.11,148.07,6.7534]
[1727311412716,24.027864,148.11,148.07,6.7534]
[1727311415281,23.776884,148.11,148.08,6.7527]
[1727311415489,15.205,148.12,148.08,8.10327441]
[1727311415808,20.3185578,148.14,148.08,13.63357904]
[1727311416010,20.3185578,148.14,148.1,6.7518]
[1727311416301,0.3185578,148.14,148.1,6.7518]
[1727311416605,0.3185578,148.14,148.11,6.7517]
[1727311416978,0.3185578,148.14,148.1,6.752]
[1727311418006,24.0954418,148.14,148.1,6.752]
[1727311419401,0.3185578,148.14,148.11,1.35025399]
[1727311419592,0.3185578,148.14,148.12,6.7512]
[1727311421284,0.3185578,148.14,148.1,12.28300463]
[1727311421485,0.3185578,148.14,148.11,6.7516]
[1727311421699,0.3185578,148.14,148.12,6.7512]
[1727311422580,0.3185578,148.14,148.13,20.38380846]
[1727311422910,0.3185578,148.14,148.13,19.03380463]
[1727311425899,0.3185578,148.14,148.13,20.38357094]
[1727311426920,0.3185578,148.14,148.13,6.7508]
[1727311427204,0.3185578,148.14,148.13,19.03380463]
[1727311429801,0.3185578,148.14,148.13,20.38349191]
[1727311430003,0.3185578,148.14,148.13,40.38349191]
[1727311431095,0.3185578,148.14,148.13,64.16037591]
[1727311432695,0.3185578,148.14,148.13,62.81068863]
[1727311432903,0.3185578,148.14,148.13,39.03380463]
[1727311439423,5.78e-05,148.14,148.13,63.06166863]
[1727311440626,5.78e-05,148.14,148.13,62.81068863]
[1727311441228,0.1149153,148.16,148.14,44.027864]
[1727311441534,0.1149153,148.16,148.13,56.31086863]
[1727311441535,0.1149153,148.16,148.15,64.40994433]
[1727311442622,0.1149153,148.16,148.15,62.80978863]
[1727311444024,0.1149153,148.16,148.15,26.7499]
[1727311445302,0.1149153,148.16,148.15,39.03290463]
[1727311445533,0.1149153,148.16,148.15,26.7499]
[1727311448230,0.1149153,148.16,148.15,28.09940857]
[1727311449035,0.1149153,148.16,148.15,26.7499]
[1727311450133,0.1149153,148.16,148.15,6.7499]
[1727311451008,0.1149153,148.16,148.15,20.38254623]
[1727311451320,0.1149153,148.16,148.15,40.38254623]
[1727311452044,0.1149153,148.16,148.15,28.0995416]
[1727311452334,0.1149153,148.16,148.15,39.03290463]
[1727311454425,0.1149153,148.16,148.15,26.7499]
[1727311454634,0.1149153,148.16,148.15,39.03290463]
[1727311455223,0.1149153,148.16,148.15,26.7499]
[1727311455428,0.1149153,148.16,148.15,6.7499]
[1727311460230,0.1149153,148.16,148.13,6.7507]
[1727311460821,0.1149153,148.16,148.15,19.03290463]
[1727311463339,0.1149153,148.16,148.14,6.7502]
[1727311465021,0.1149153,148.16,148.15,8.09974553]
[1727311465266,0.1149153,148.16,148.15,20.38275016]
[1727311465425,0.1149153,148.16,148.15,19.03290463]
[1727311467446,0.1149153,148.16,148.15,6.7499]
[1727311470427,0.1149153,148.16,148.15,8.09949284]
[1727311470636,0.1149153,148.16,148.15,6.7499]
[1727311475051,0.1149153,148.16,148.12,20.0]
[1727311475257,0.1149153,148.16,148.09,19.16953078]
[1727311475435,0.1149153,148.16,148.13,6.7506]
[1727311476858,0.1149153,148.16,148.08,20.0]
[1727311478640,0.1149153,148.16,148.13,6.7504]
[1727311479043,0.1149153,148.16,148.09,1.35001505]
[1727311479361,0.1149153,148.16,148.14,6.7503]
[1727311479957,0.1149153,148.16,148.15,1.34982814]
[1727311480167,0.1149153,148.16,148.15,1.34983282]
[1727311480474,0.1149153,148.16,148.15,6.7499]
[1727311483146,0.1149153,148.16,148.15,8.09946209]
[1727311483750,0.1149153,148.16,148.15,27.26899287]
[1727311484283,0.1149153,148.16,148.15,25.91943078]
[1727311490363,0.1149153,148.16,148.15,19.01499597]
[1727311493074,0.1149153,148.16,148.15,63.04285997]
[1727311493275,0.1149153,148.16,148.15,64.39213973]
[1727311498663,0.1149153,148.16,148.15,63.04285997]
[1727311499968,0.1149153,148.16,148.15,64.39202229]
[1727311500755,0.2539612,148.18,148.17,6.749]
[1727311500957,0.2539612,148.18,148.17,64.39106906]
[1727311502571,0.2539612,148.18,148.17,63.04195997]
[1727311507088,0.2539612,148.18,148.17,64.39107019]
[1727311507670,0.3221716,148.23,148.22,6.7467]
[1727311507868,0.3221716,148.23,148.22,20.36070182]
[1727311508489,0.3221716,148.23,148.22,6.7467]
[1727311511685,0.3221716,148.23,148.21,6.747]
[1727311513784,0.3221716,148.23,148.22,6.7467]
[1727311514887,0.3221716,148.23,148.21,6.747]
[1727311515387,0.3221716,148.23,148.2,6.7475]
[1727311520773,15.1612,148.22,148.19,6.7479]
[1727311526496,6.748,148.2,148.15,6.7495]
[1727311526666,21.9079,148.22,148.17,6.7489]
[1727311527483,6.7472,148.21,148.17,6.7489]
[1727311527688,13.257,148.21,148.16,6.7493]
[1727311527880,13.257,148.21,148.12,12.26509597]
[1727311527881,6.7478,148.2,148.15,6.7498]
[1727311528075,6.5098,148.21,148.15,6.7498]
[1727311528076,6.7481,148.19,148.15,6.7498]
[1727311528476,16.0559,148.18,148.1,12.26509597]
[1727311529377,16.0559,148.18,148.09,20.0]
[1727311529578,16.0559,148.18,148.11,20.0]
[1727311529997,22.8044,148.18,148.1,20.0]
[1727311530181,6.749,148.17,148.12,6.7511]
[1727311530381,6.749,148.17,148.13,6.7507]
[1727311531276,6.749,148.17,148.12,6.7512]
[1727311533603,6.3856,148.15,148.11,6.7516]
[1727311534188,15.8551,148.14,148.07,0.2539612]
[1727311534404,22.6055,148.14,148.09,6.7525]
[1727311535489,24.027864,148.13,148.07,0.2539612]
[1727311535694,6.7519,148.11,148.07,0.2539612]
[1727311535903,15.681,148.1,148.07,0.2539612]
[1727311536108,22.4332,148.1,148.07,0.2539612]
[1727311536611,30.655474,148.08,148.07,0.2539612]
[1727311536792,30.780964,148.08,148.07,0.2539612]
[1727311536997,23.902374,148.06,148.02,0.2539612]
[1727311538494,0.12549,148.04,148.02,0.2539612]
[1727311538691,6.7549,148.04,148.02,0.2539612]
[1727311543488,30.657674,148.03,148.02,0.2539612]
[1727311544188,30.783164,148.03,148.02,0.2539612]
[1727311545693,50.783164,148.03,148.02,0.2539612]
[1727311547424,6.7569,148.0,147.98,0.2539612]
[1727311547595,0.25098,148.02,147.98,0.2539612]
[1727311547802,6.88269,147.99,147.98,0.2539612]
[1727311548117,23.38569,147.99,147.98,0.2539612]
[1727311548317,43.38569,147.99,147.98,0.2539612]
[1727311548493,67.288064,147.99,147.98,0.2539612]
[1727311548698,73.532064,147.99,147.98,0.2539612]
[1727311554294,67.288064,147.99,147.98,0.2539612]
[1727311556299,43.38569,147.99,147.98,0.2539612]
[1727311556900,67.288064,147.99,147.98,0.2539612]
[1727311561737,67.288064,147.99,147.93,7.1153848]
[1727311561738,6.7594,147.94,147.93,0.3554848]
[1727311562015,0.25098,147.97,147.93,0.3554848]
[1727311562410,0.12549,147.95,147.93,0.3554848]
[1727311563602,23.776884,147.97,147.93,0.3554848]
[1727311563816,0.12549,147.96,147.92,7.0399197]
[1727311564026,30.534984,147.97,147.92,7.0399197]
[1727311564245,6.7568,148.0,147.95,6.7589]
[1727311565127,6.7572,147.99,147.94,6.7594]
[1727311565426,6.7577,147.98,147.93,6.7599]
[1727311565623,0.12549,147.99,147.92,0.2796197]
[1727311565830,6.7586,147.96,147.92,0.2796197]
[1727311566828,0.12549,147.96,147.92,7.0395197]
[1727311568213,6.7585,147.96,147.92,0.2796197]
[1727311570308,6.7591,147.95,147.92,0.2796197]
[1727311570504,6.7599,147.93,147.92,0.2796197]
[1727311570733,23.902374,147.96,147.92,0.2796197]
[1727311570917,6.7595,147.94,147.92,0.2796197]
[1727311572626,0.12549,147.95,147.92,0.2796197]
[1727311573030,6.7599,147.93,147.92,0.2796197]
[1727311573230,30.787764,147.93,147.92,0.2796197]
[1727311573736,50.787764,147.93,147.92,0.2796197]
[1727311574036,50.788264,147.92,147.91,0.2583017]
[1727311574215,66.566564,147.92,147.91,0.2583017]
[1727311575633,73.61544624,147.92,147.91,0.2583017]
[1727311576032,66.85504624,147.92,147.87,0.2583017]
[1727311576234,30.664574,147.88,147.87,0.2583017]
[1727311577531,30.790064,147.88,147.87,0.2583017]
[1727311578229,0.12549,147.88,147.87,0.2583017]
[1727311580015,6.7609,147.91,147.87,0.2583017]
[1727311580245,6.88639,147.91,147.87,0.2583017]
[1727311580536,6.7609,147.91,147.87,0.2583017]
[1727311581035,15.7783,147.92,147.88,6.7621]
[1727311581248,16.5532,147.98,147.9,12.26509597]
[1727311581619,16.5532,147.98,147.87,22.0294017]
[1727311581841,16.5532,147.98,147.89,12.26509597]
[1727311582343,44.027864,147.97,147.89,12.26509597]
[1727311582550,43.902374,147.94,147.9,6.7609]
[1727311583355,23.902374,147.94,147.9,6.7609]
[1727311583848,23.902374,147.94,147.88,12.26509597]
[1727311584060,6.7599,147.93,147.87,34.29449767]
[1727311584345,30.661874,147.94,147.89,6.7617]
[1727311584548,6.7605,147.92,147.87,28.7920017]
[1727311584851,0.12549,147.91,147.87,28.7920017]
[1727311585749,6.76,147.93,147.88,6.7622]
[1727311586251,0.12549,147.92,147.88,6.7622]
[1727311586618,23.776884,147.94,147.89,6.7616]
[1727311586619,30.536384,147.94,147.89,6.7616]
[1727311587133,0.12549,147.93,147.89,6.7616]
[1727311588733,0.12549,147.93,147.9,6.7612]
[1727311588920,6.759,147.95,147.9,6.7612]
[1727311589121,0.12549,147.94,147.9,6.7612]